bitfinex-derivatives/quotes_BTCF0:USTF0_20241210
["timestamp","ask_amount","ask_price","bid_price","bid_amount"]
[1733797825541,0.3608,97446.0,97443.0,0.00320653]
[1733797825847,0.3608,97446.0,97438.0,1.55362]
[1733797825848,0.3608,97446.0,97438.0,1.50152]
[1733797826141,0.051282,97439.0,97438.0,0.001]
[1733797826732,0.051284,97434.0,97433.0,0.00153966]
[1733797826939,0.051287,97429.0,97406.0,0.051299]
[1733797827138,0.412087,97429.0,97406.0,0.051299]
[1733797828145,0.412087,97429.0,97409.0,0.00806638]
[1733797828452,0.412087,97429.0,97406.0,0.051299]
[1733797828746,0.412087,97429.0,97410.0,1.5]
[1733797829138,0.418087,97429.0,97410.0,1.5]
[1733797829542,0.3668,97429.0,97410.0,1.5]
[1733797829745,0.3608,97411.0,97410.0,1.5]
[1733797829944,0.3608,97411.0,97410.0,1.50320783]
[1733797830145,0.412096,97411.0,97410.0,1.50320783]
[1733797830452,0.412096,97411.0,97410.0,1.5]
[1733797831542,0.412096,97411.0,97410.0,1.502]
[1733797831543,0.3608,97411.0,97410.0,1.502]
[1733797831851,0.3608,97411.0,97410.0,1.50520778]
[1733797832049,0.3608,97411.0,97410.0,1.50420778]
[1733797832747,0.3608,97411.0,97410.0,1.50520778]
[1733797834435,0.3608,97411.0,97410.0,1.50420778]
[1733797835038,0.3608,97411.0,97410.0,1.50620778]
[1733797836150,0.3608,97411.0,97410.0,1.50320778]
[1733797836349,0.3608,97411.0,97410.0,1.501]
[1733797837153,0.3608,97411.0,97410.0,1.50420787]
[1733797839753,0.3608,97411.0,97410.0,1.50934019]
[1733797841449,0.3608,97411.0,97410.0,1.501]
[1733797841750,0.3694129,97428.0,97410.0,1.50934021]
[1733797841751,0.36152,97428.0,97410.0,1.50934021]
[1733797841950,0.21414752,97429.0,97427.0,0.051291]
[1733797842141,0.05282899,97431.0,97428.0,0.00834021]
[1733797842142,0.00153999,97431.0,97428.0,0.00834021]
[1733797842339,0.05129,97430.0,97429.0,1.50834021]
[1733797842540,0.05129,97430.0,97429.0,0.00834021]
[1733797842843,0.05129,97430.0,97401.0,0.16247815]
[1733797843042,0.05129,97430.0,97401.0,7.815e-05]
[1733797843043,0.051305,97402.0,97401.0,7.815e-05]
[1733797843552,0.26544172,97402.0,97401.0,7.815e-05]
[1733797843754,0.14304229,97402.0,97401.0,7.815e-05]
[1733797844249,0.14304229,97402.0,97385.0,0.00821472]
[1733797844552,0.3608,97386.0,97384.0,0.051314]
[1733797844748,0.12243414,97393.0,97392.0,0.05131]
[1733797845342,0.00010809,97401.0,97400.0,0.051306]
[1733797846545,0.00010809,97401.0,97400.0,0.056306]
[1733797847748,0.00010809,97401.0,97400.0,1.557306]
[1733797849150,0.00010809,97401.0,97400.0,1.506]
[1733797849354,0.05141309,97401.0,97400.0,1.506]
[1733797850348,0.05141309,97401.0,97400.0,0.006]
[1733797850548,0.16431309,97401.0,97400.0,0.006]
[1733797852043,0.21421965,97401.0,97400.0,0.006]
[1733797852354,0.214219,97401.0,97400.0,0.006]
[1733797852654,0.214219,97401.0,97400.0,0.001]
[1733797852852,0.214219,97401.0,97400.0,0.004]
[1733797853247,0.214219,97401.0,97400.0,0.001]
[1733797853447,0.051309,97393.0,97392.0,0.00010978]
[1733797853658,0.412109,97393.0,97392.0,0.00010978]
[1733797853950,0.051315,97383.0,97382.0,1.5]
[1733797854153,0.412115,97383.0,97382.0,1.5051343]
[1733797854745,0.412115,97383.0,97382.0,1.50834324]
[1733797854950,0.412115,97383.0,97382.0,1.5]
[1733797855150,0.412115,97383.0,97382.0,0.00934325]
[1733797855454,0.46202879,97383.0,97382.0,0.00420894]
[1733797855655,0.412115,97383.0,97382.0,0.00420894]
[1733797855948,0.46202951,97383.0,97382.0,0.00920894]
[1733797856261,0.64444215,97383.0,97382.0,0.006]
[1733797856561,0.46202951,97383.0,97382.0,0.006]
[1733797857051,0.61978911,97383.0,97382.0,0.006]
[1733797857257,0.46202951,97383.0,97382.0,0.006]
[1733797857847,0.051316,97381.0,97366.0,1.5]
[1733797858058,0.23525008,97381.0,97366.0,1.5]
[1733797858251,0.28516459,97381.0,97366.0,1.5]
[1733797858558,0.10123051,97381.0,97366.0,1.551324]
[1733797858761,0.10123051,97381.0,97380.0,0.00320925]
[1733797859057,0.10123051,97381.0,97380.0,0.00834378]
[1733797859058,0.051316,97381.0,97380.0,0.00834378]
[1733797859564,0.051316,97381.0,97380.0,1.51434378]
[1733797859950,0.051316,97381.0,97380.0,1.50834378]
[1733797860155,0.053316,97381.0,97380.0,1.50834378]
[1733797860951,0.053316,97381.0,97380.0,1.50834301]
[1733797861349,0.055316,97381.0,97380.0,1.50834301]
[1733797862259,0.055316,97381.0,97380.0,0.00320885]
[1733797862460,0.051324,97366.0,97365.0,0.00010029]
[1733797862669,0.3608,97367.0,97365.0,1.55976835]
[1733797862854,0.09191983,97370.0,97366.0,0.36914406]
[1733797863055,0.09191983,97371.0,97369.0,0.051322]
[1733797863358,0.12255977,97376.0,97370.0,0.00834406]
[1733797863359,0.14323883,97376.0,97370.0,0.00834406]
[1733797863559,0.09191983,97375.0,97371.0,0.0083434]
[1733797863751,0.09191983,97374.0,97372.0,0.0596634]
[1733797863956,0.21446552,97380.0,97373.0,0.0083434]
[1733797864162,0.21446552,97380.0,97374.0,0.0646434]
[1733797864365,0.12255977,97380.0,97379.0,0.051317]
[1733797864666,0.412835,97383.0,97382.0,0.051315]
[1733797864667,0.36152,97383.0,97382.0,0.051315]
[1733797864961,0.3608,97383.0,97382.0,1.5596584]
[1733797865464,0.3608,97383.0,97382.0,1.5083434]
[1733797865760,0.3608,97383.0,97382.0,1.5]
[1733797866263,0.3608,97383.0,97382.0,1.51234291]
[1733797866761,0.3608,97383.0,97382.0,1.51134291]
[1733797867264,0.45270575,97383.0,97382.0,1.51134291]
[1733797867463,0.4527302,97383.0,97382.0,1.51134291]
[1733797867762,0.3608,97383.0,97382.0,0.01134291]
[1733797867960,0.3618,97383.0,97382.0,0.01134291]
[1733797868659,0.3618,97383.0,97382.0,0.00834291]
[1733797868860,0.3628,97383.0,97382.0,0.00834291]
[1733797869461,0.3628,97383.0,97380.0,1.5537]
[1733797869664,0.3628,97383.0,97380.0,1.5531]
[1733797869964,0.3628,97383.0,97381.0,0.051316]
[1733797869965,0.3658,97383.0,97381.0,0.051316]
[1733797870368,0.3618,97383.0,97381.0,0.051316]
[1733797870664,0.3628,97383.0,97381.0,0.051316]
[1733797871256,0.3618,97383.0,97381.0,0.051316]
[1733797872068,0.3608,97383.0,97381.0,0.051316]
[1733797872964,0.3608,97383.0,97382.0,0.00834262]
[1733797875766,0.3608,97383.0,97382.0,0.01034262]
[1733797876766,0.3608,97383.0,97382.0,0.00834262]
[1733797876967,0.3608,97383.0,97382.0,0.00934262]
[1733797878260,0.12410067,97387.0,97382.0,0.00934262]
[1733797878475,0.0015409,97387.0,97383.0,0.00834262]
[1733797878671,0.0015409,97387.0,97386.0,0.051313]
[1733797878969,0.0015409,97387.0,97386.0,0.1045728]
[1733797879171,0.48403977,97394.0,97390.0,0.051311]
[1733797879472,0.48403977,97394.0,97391.0,0.00834262]
[1733797879473,0.12255977,97392.0,97391.0,0.00834262]
[1733797879673,0.3608,97394.0,97391.0,0.00834262]
[1733797879674,0.17386977,97393.0,97391.0,0.00834262]
[1733797879873,0.05131,97393.0,97392.0,0.00834262]
[1733797881071,0.05131,97393.0,97392.0,0.0083422]
[1733797881367,0.05131,97393.0,97392.0,0.00320854]
[1733797881368,0.15519972,97393.0,97392.0,0.00320854]
[1733797881570,0.05190424,97393.0,97392.0,0.00320854]
[1733797881964,0.23583832,97393.0,97392.0,0.00320854]
[1733797882169,0.23483832,97393.0,97392.0,0.00320854]
[1733797882476,0.05390424,97393.0,97392.0,0.00320854]
[1733797882979,0.05590424,97393.0,97392.0,0.00320854]
[1733797884377,0.05790424,97393.0,97392.0,0.00320854]
[1733797885073,0.05690424,97393.0,97392.0,0.00320854]
[1733797885479,0.05190424,97393.0,97392.0,0.00320854]
[1733797885677,0.05590424,97393.0,97392.0,0.00320854]
[1733797886170,0.05690424,97393.0,97392.0,0.00320854]
[1733797886883,0.007,97393.0,97392.0,0.00320854]
[1733797887180,0.16069978,97393.0,97392.0,0.00320854]
[1733797887379,0.007,97393.0,97392.0,0.00320854]
[1733797887583,0.008,97393.0,97392.0,0.00320854]
[1733797887783,0.05790884,97393.0,97392.0,0.00320854]
[1733797887978,0.05790884,97393.0,97388.0,0.051312]
[1733797888170,0.051311,97391.0,97389.0,0.00320885]
[1733797888381,0.23579687,97391.0,97390.0,0.00320885]
[1733797888685,0.28570571,97391.0,97390.0,0.00320885]
[1733797888979,0.28577151,97391.0,97390.0,0.00320885]
[1733797889369,0.28577076,97391.0,97390.0,0.00320885]
[1733797889772,0.29077076,97391.0,97390.0,0.00320885]
[1733797889974,0.10621984,97391.0,97390.0,0.00320885]
[1733797890269,0.10621984,97391.0,97381.0,1.5]
[1733797890270,0.23445732,97391.0,97381.0,1.5]
[1733797890469,0.412115,97382.0,97381.0,1.5]
[1733797890677,0.46202384,97382.0,97381.0,1.50320908]
[1733797891972,0.46402384,97382.0,97381.0,1.50320908]
[1733797892173,0.46402801,97382.0,97381.0,0.00320908]
[1733797892582,0.41271301,97382.0,97381.0,0.00320908]
[1733797892881,0.3668,97382.0,97381.0,1.50834368]
[1733797893277,0.3668,97382.0,97381.0,1.66166559]
[1733797893879,0.002,97382.0,97381.0,1.6177427]
[1733797894085,0.09226694,97385.0,97384.0,0.051314]
[1733797894283,0.12300653,97389.0,97386.0,0.051313]
[1733797894581,0.12300653,97389.0,97387.0,0.0083427]
[1733797894784,0.12300653,97389.0,97388.0,0.0083427]
[1733797894983,0.051311,97390.0,97388.0,0.00320873]
[1733797895175,0.051311,97390.0,97381.0,1.50152]
[1733797895176,0.051315,97382.0,97381.0,1.50152]
[1733797895376,0.412115,97382.0,97381.0,1.50420887]
[1733797895586,0.412115,97382.0,97381.0,1.50320887]
[1733797895894,0.412115,97382.0,97381.0,1.50820887]
[1733797896484,0.412115,97382.0,97381.0,1.50420887]
[1733797896888,0.3608,97382.0,97381.0,1.50420887]
[1733797897994,0.48381404,97382.0,97381.0,1.50420887]
[1733797898283,0.09226094,97388.0,97387.0,0.051313]
[1733797898484,0.36148,97390.0,97387.0,0.00320887]
[1733797898485,0.45374094,97390.0,97387.0,0.00320887]
[1733797898785,0.45374094,97390.0,97388.0,0.15970887]
[1733797898786,0.3608,97390.0,97388.0,0.15970887]
[1733797898986,0.3608,97390.0,97389.0,1.55451987]
[1733797900483,0.3608,97390.0,97389.0,1.55551987]
[1733797900686,0.3608,97390.0,97389.0,1.80145568]
[1733797900978,0.3608,97390.0,97389.0,1.55451987]
[1733797901280,0.3608,97390.0,97389.0,1.55551987]
[1733797902482,0.3608,97390.0,97389.0,1.552311]
[1733797902694,0.3608,97390.0,97389.0,1.55551936]
[1733797902892,0.48374498,97390.0,97389.0,1.55551936]
[1733797903083,0.09219395,97390.0,97389.0,1.60043587]
[1733797903283,0.3608,97409.0,97389.0,1.9612335]
[1733797903493,0.3608,97409.0,97391.0,0.101226]
[1733797903687,0.3608,97409.0,97392.0,0.0481225]
[1733797903890,0.3608,97412.0,97393.0,0.0481225]
[1733797904096,0.3608,97412.0,97394.0,0.0481225]
[1733797904393,0.3608,97412.0,97400.0,1.5]
[1733797904694,0.12301679,97401.0,97400.0,1.50320836]
[1733797904994,0.00010809,97401.0,97400.0,1.55451336]
[1733797905793,0.00010809,97401.0,97400.0,1.56293878]
[1733797906192,0.12295245,97401.0,97400.0,1.56293878]
[1733797906392,0.12395245,97401.0,97400.0,1.56293878]
[1733797906690,0.00110809,97401.0,97400.0,1.56293878]
[1733797907188,0.00110809,97401.0,97400.0,1.56393878]
[1733797907189,0.00010809,97401.0,97400.0,1.56393878]
[1733797907587,0.092219,97401.0,97400.0,1.56393878]
[1733797907888,0.09211091,97410.0,97408.0,0.051301]
[1733797908089,0.00154045,97413.0,97412.0,0.051299]
[1733797908292,0.09211091,97417.0,97415.0,0.051298]
[1733797908483,0.09211091,97418.0,97417.0,0.051296]
[1733797908687,0.09205013,97418.0,97417.0,0.051296]
[1733797908890,0.09205013,97418.0,97417.0,0.05450339]
[1733797909096,0.0921015,97419.0,97417.0,0.05450331]
[1733797909287,0.0921015,97419.0,97418.0,0.00320731]
[1733797909488,0.00010012,97419.0,97418.0,0.00320731]
[1733797910597,0.00010012,97419.0,97418.0,1.50320731]
[1733797911192,0.00010012,97419.0,97418.0,1.56130731]
[1733797914887,0.00010012,97419.0,97418.0,1.56130739]
[1733797915095,0.00010012,97419.0,97418.0,1.5581]
[1733797916091,0.00010012,97419.0,97418.0,1.56130735]
[1733797917585,0.00010012,97419.0,97418.0,1.56144047]
[1733797917787,0.00153991,97437.0,97436.0,0.051286]
[1733797918192,0.00153991,97437.0,97436.0,0.05962314]
[1733797918496,0.3608,97448.0,97447.0,0.051281]
[1733797918700,0.3608,97448.0,97447.0,0.05448759]
[1733797919201,0.3608,97448.0,97447.0,1.55448759]
[1733797920096,0.33771345,97448.0,97447.0,1.59617165]
[1733797920707,0.33771345,97448.0,97447.0,1.60193508]
[1733797921002,0.008,97448.0,97447.0,1.60614153]
[1733797921204,0.0573,97460.0,97447.0,1.55999048]
[1733797921401,0.0573,97460.0,97458.0,0.051275]
[1733797921696,0.0573,97460.0,97459.0,0.04489017]
[1733797922206,0.0574172,97460.0,97459.0,0.04489017]
[1733797922892,0.0574172,97460.0,97459.0,1.54489017]
[1733797923099,0.0001172,97460.0,97459.0,1.51923841]
[1733797923292,0.0001172,97460.0,97459.0,1.51923839]
[1733797923699,0.0001172,97460.0,97459.0,1.51923838]
[1733797923895,0.0011172,97460.0,97459.0,1.51923838]
[1733797924799,0.001,97460.0,97459.0,1.52795002]
[1733797925000,0.3608,97474.0,97473.0,0.051267]
[1733797925193,0.3608,97474.0,97473.0,0.06729933]
[1733797925397,0.00153945,97476.0,97473.0,0.01603233]
[1733797925594,0.00153945,97476.0,97475.0,0.051266]
[1733797925791,0.00153945,97476.0,97475.0,0.07050396]
[1733797925994,0.00162762,97476.0,97475.0,0.09614777]
[1733797926205,0.00162762,97476.0,97475.0,0.10127648]
[1733797927503,8.817e-05,97476.0,97475.0,0.10127648]
[1733797928010,8.817e-05,97476.0,97475.0,1.60127648]
[1733797928011,0.00208817,97476.0,97475.0,1.60127648]
[1733797928194,0.00208817,97476.0,97475.0,1.58975597]
[1733797928505,0.36288817,97476.0,97475.0,0.04488177]
[1733797929205,0.36288817,97476.0,97475.0,0.04167614]
[1733797929605,0.36288817,97476.0,97475.0,0.0673196]
[1733797929802,0.41415317,97476.0,97475.0,0.04167296]
[1733797930008,0.05127,97467.0,97458.0,0.051274]
[1733797930207,0.0541,97466.0,97458.0,0.051274]
[1733797930499,0.0541,97466.0,97459.0,1.5]
[1733797930894,0.0541,97466.0,97465.0,0.051271]
[1733797931095,8.817e-05,97476.0,97475.0,0.051266]
[1733797931504,8.817e-05,97476.0,97475.0,1.551266]
[1733797932409,8.817e-05,97476.0,97475.0,1.55447125]
[1733797933294,0.0541,97486.0,97475.0,1.57049746]
[1733797933500,0.0541,97486.0,97483.0,0.3608]
[1733797933700,0.0541,97486.0,97484.0,0.01923074]
[1733797933909,0.0541,97486.0,97485.0,0.01923074]
[1733797934405,0.05422991,97486.0,97485.0,0.01923074]
[1733797935001,0.3608,97497.0,97485.0,0.06410316]
[1733797935198,0.3608,97497.0,97493.0,0.051256]
[1733797935401,0.3608,97497.0,97494.0,0.06410282]
[1733797935599,0.3608,97497.0,97495.0,0.04807733]
[1733797935811,0.3608,97497.0,97496.0,0.04807733]
[1733797936108,7.411e-05,97497.0,97496.0,0.04817125]
[1733797936914,7.411e-05,97497.0,97496.0,0.06419674]
[1733797937304,0.05520802,97500.0,97497.0,0.051254]
[1733797937606,0.05520802,97500.0,97499.0,0.051253]
[1733797937805,0.05520802,97500.0,97499.0,1.60253061]
[1733797938506,0.05532207,97500.0,97499.0,1.5704834]
[1733797938912,0.05732207,97500.0,97499.0,1.5704834]
[1733797939512,0.05732207,97500.0,97499.0,1.5192304]
[1733797939805,0.05732207,97500.0,97499.0,0.0202304]
[1733797940201,0.05732207,97500.0,97499.0,0.04586798]
[1733797940404,0.05732207,97500.0,97499.0,0.04486798]
[1733797940601,0.05732207,97500.0,97499.0,0.04586798]
[1733797941001,0.05532207,97500.0,97499.0,0.04486798]
[1733797941205,0.05532207,97500.0,97499.0,0.04586798]
[1733797941609,0.05532207,97500.0,97499.0,0.04266307]
[1733797941807,0.05532207,97500.0,97499.0,0.04586781]
[1733797942013,0.05532207,97500.0,97499.0,0.09073357]
[1733797943211,0.02327561,97500.0,97499.0,0.09073357]
[1733797944214,0.07452861,97500.0,97499.0,0.04586781]
[1733797944517,0.07452861,97500.0,97499.0,0.01347014]
[1733797945013,0.07452861,97500.0,97499.0,0.001]
[1733797945219,0.07452861,97500.0,97496.0,9.392e-05]
[1733797945413,0.412055,97497.0,97496.0,9.392e-05]
[1733797945904,0.53489936,97497.0,97496.0,1.35e-06]
[1733797946106,0.412055,97497.0,97496.0,1.35e-06]
[1733797946714,0.05127,97467.0,97466.0,0.0087196]
[1733797947018,0.05127,97467.0,97466.0,0.00320584]
[1733797947206,0.05127,97467.0,97466.0,1.50320584]
[1733797947405,0.10717,97467.0,97466.0,1.50320584]
[1733797947815,0.051276,97456.0,97455.0,0.00013134]
[1733797948110,0.412076,97456.0,97455.0,0.00013134]
[1733797948822,0.412076,97456.0,97455.0,1.50013134]
[1733797949709,0.412076,97456.0,97455.0,0.00013134]
[1733797950016,0.412076,97456.0,97430.0,1.5]
[1733797950017,0.3618,97456.0,97430.0,1.5]
[1733797950212,0.051285,97439.0,97431.0,0.04489588]
[1733797950416,0.051285,97439.0,97430.0,1.50052]
[1733797950604,0.051285,97439.0,97430.0,1.5]
[1733797950919,0.051285,97439.0,97433.0,9.294e-05]
[1733797951909,0.3608,97440.0,97433.0,9.294e-05]
[1733797952211,0.051287,97434.0,97433.0,9.294e-05]
[1733797953307,0.051293,97424.0,97410.0,0.00153961]
[1733797953614,0.412093,97424.0,97410.0,0.00153961]
[1733797954211,0.0513,97411.0,97410.0,0.00153961]
[1733797954405,0.4121,97411.0,97410.0,0.00153961]
[1733797955518,0.051304,97403.0,97402.0,0.00875707]
[1733797955719,0.412104,97403.0,97402.0,0.00875707]
[1733797956307,0.3608,97403.0,97402.0,9.554e-05]
[1733797956512,0.3608,97403.0,97402.0,0.01613662]
[1733797956918,0.3688,97403.0,97402.0,0.01713662]
[1733797957121,0.3728,97403.0,97402.0,1.51713662]
[1733797957616,0.3698,97403.0,97402.0,1.51713662]
[1733797958519,0.3698,97403.0,97402.0,1.50109554]
[1733797958717,0.421104,97403.0,97402.0,1.50109554]
[1733797959618,0.421104,97403.0,97382.0,0.0015404]
[1733797959619,0.051313,97387.0,97382.0,0.0015404]
[1733797959824,0.051313,97387.0,97383.0,0.0160431]
[1733797960127,0.051313,97387.0,97384.0,0.0160431]
[1733797960316,0.051313,97387.0,97385.0,0.04171298]
[1733797960517,0.051313,97387.0,97386.0,0.04171298]
[1733797961115,0.051313,97387.0,97386.0,1.54171298]
[1733797961321,0.051313,97387.0,97386.0,0.04171298]
[1733797961516,0.3608,97387.0,97382.0,0.001]
[1733797961724,0.3608,97387.0,97382.0,1.501]
[1733797961725,0.051315,97383.0,97382.0,1.501]
[1733797962217,0.051315,97383.0,97382.0,0.001]
[1733797963225,0.00010947,97386.0,97377.0,1.50052]
[1733797963434,0.3608,97379.0,97378.0,0.04171772]
[1733797964222,0.3608,97379.0,97376.0,8.956e-05]
[1733797964223,0.051318,97378.0,97376.0,8.956e-05]
[1733797964527,0.109318,97378.0,97376.0,8.956e-05]
[1733797966525,0.051328,97359.0,97337.0,0.051339]
[1733797966723,0.051318,97377.0,97338.0,0.02567887]
[1733797966724,0.051337,97341.0,97338.0,0.02567887]
[1733797966928,0.051337,97341.0,97329.0,0.412143]
[1733797966929,0.051337,97341.0,97339.0,0.02567887]
[1733797967118,0.051337,97341.0,97340.0,0.02567887]
[1733797967424,0.051337,97341.0,97340.0,0.04172816]
[1733797967625,0.3608,97342.0,97340.0,0.04172816]
[1733797967832,0.36164,97350.0,97341.0,0.04172816]
[1733797968123,0.36164,97350.0,97345.0,0.051335]
[1733797968124,0.3608,97350.0,97345.0,0.051335]
[1733797968329,0.3608,97350.0,97346.0,0.07404929]
[1733797968529,0.3608,97350.0,97347.0,0.01604929]
[1733797968926,0.3608,97350.0,97348.0,0.02567887]
[1733797968927,0.412132,97350.0,97348.0,0.02567887]
[1733797969228,0.412132,97350.0,97346.0,0.058]
[1733797969525,0.051333,97348.0,97347.0,0.04173061]
[1733797970124,0.3608,97350.0,97348.0,0.001]
[1733797970318,0.051333,97349.0,97348.0,0.001]
[1733797970818,0.051333,97349.0,97331.0,0.0553]
[1733797970819,0.351333,97349.0,97302.0,0.3608]
[1733797971024,0.3608,97319.0,97299.0,0.3608]
[1733797971227,0.3608,97319.0,97291.0,0.051363]
[1733797971228,0.051357,97303.0,97291.0,0.051363]
[1733797971527,0.051358,97301.0,97289.0,0.3608]
[1733797971926,0.05147511,97301.0,97295.0,0.00013252]
[1733797972125,0.00011711,97301.0,97300.0,0.151359]
[1733797972329,0.00011711,97301.0,97300.0,0.101]
[1733797972735,0.00011711,97301.0,97300.0,1.601]
[1733797973431,0.00011711,97301.0,97269.0,0.3608]
[1733797973623,0.3608,97272.0,97260.0,0.101226]
[1733797973828,0.3608,97272.0,97264.0,0.05292031]
[1733797974123,0.3608,97272.0,97264.0,0.00154231]
[1733797974327,0.051377,97265.0,97264.0,0.00154231]
[1733797974523,0.051377,97265.0,97257.0,0.36988487]
[1733797974524,0.051377,97265.0,97257.0,0.37001547]
[1733797974730,0.3608,97263.0,97257.0,0.00921547]
[1733797975131,0.3608,97263.0,97257.0,0.06059647]
[1733797975326,0.3608,97263.0,97257.0,0.0001306]
[1733797975725,0.051379,97261.0,97257.0,0.0001306]
[1733797975927,0.3608,97263.0,97257.0,0.0001306]
[1733797976627,0.3618,97263.0,97260.0,0.051379]
[1733797976832,0.002,97263.0,97260.0,0.051379]
[1733797977726,0.002,97263.0,97261.0,0.051378]
[1733797978035,0.002,97263.0,97262.0,1.5]
[1733797979130,0.001,97263.0,97262.0,1.5]
[1733797979734,0.001,97263.0,97262.0,1.508]
[1733797981538,0.001,97263.0,97257.0,0.0001306]
[1733797981539,0.05138,97258.0,97257.0,0.0001306]
[1733797982041,0.15218574,97260.0,97236.0,1.5]
[1733797982229,0.3608,97247.0,97236.0,1.5]
[1733797982629,0.3608,97247.0,97232.0,0.00154282]
[1733797982630,0.41219,97239.0,97232.0,0.00154282]
[1733797982830,0.3608,97237.0,97207.0,0.3608]
[1733797983036,0.3608,97224.0,97222.0,0.00011845]
[1733797983334,0.3608,97224.0,97223.0,0.01606866]
[1733797984023,0.3608,97224.0,97199.0,0.3608]
[1733797984229,0.051402,97211.0,97190.0,0.3608]
[1733797984437,0.3608,97204.0,97191.0,0.051413]
[1733797985037,0.3608,97204.0,97200.0,0.10009409]
[1733797985235,0.00930045,97225.0,97203.0,0.3608]
[1733797985236,0.3608,97225.0,97203.0,0.3608]
[1733797985443,0.3608,97225.0,97210.0,0.20358874]
[1733797985635,0.412195,97225.0,97210.0,0.15218574]
[1733797985832,0.001,97224.0,97223.0,0.009]
[1733797986129,0.002,97224.0,97223.0,0.009]
[1733797986330,0.002,97224.0,97223.0,0.3698]
[1733797986530,0.3608,97257.0,97223.0,0.3608]
[1733797986736,0.3608,97257.0,97237.0,0.3608]
[1733797987039,0.001,97225.0,97215.0,0.3608]
[1733797987245,0.006,97224.0,97223.0,0.001]
[1733797987839,0.001,97225.0,97223.0,1.5]
[1733797988532,0.051389,97236.0,97223.0,1.5]
[1733797988949,0.3608,97230.0,97223.0,1.5]
[1733797989642,0.36280084,97238.0,97223.0,1.5]
[1733797989643,0.36180084,97238.0,97229.0,0.051392]
[1733797989840,0.36180084,97238.0,97230.0,0.0545]
[1733797989841,0.00012083,97238.0,97230.0,0.0545]
[1733797990734,0.00012083,97238.0,97235.0,0.051389]
[1733797991342,0.00012083,97238.0,97237.0,0.051388]
[1733797991937,0.00312083,97238.0,97237.0,1.551388]
[1733797992645,0.00912083,97238.0,97237.0,1.551388]
[1733797992943,0.01112083,97238.0,97237.0,1.551388]
[1733797993145,0.3608,97265.0,97251.0,0.05138]
[1733797993936,0.36318285,97271.0,97258.0,0.3608]
[1733797994137,0.00154285,97271.0,97267.0,0.3608]
[1733797994341,7.745e-05,97270.0,97267.0,0.412172]
[1733797995044,7.745e-05,97270.0,97251.0,0.001]
[1733797995045,0.05138,97252.0,97251.0,0.001]
[1733797995237,0.3608,97257.0,97251.0,0.001]
[1733797995650,0.6608,97257.0,97240.0,0.3608]
[1733797995849,0.3608,97248.0,97230.0,0.3608]
[1733797996038,0.051392,97229.0,97222.0,0.3608]
[1733797996344,0.3608,97232.0,97216.0,0.3608]
[1733797996546,0.054,97247.0,97225.0,0.3608]
[1733797996736,0.36168001,97248.0,97230.0,0.15218574]
[1733797996737,0.051384,97246.0,97230.0,0.15218574]
[1733797996941,0.36164,97248.0,97230.0,0.15218574]
[1733797997148,0.36164,97257.0,97239.0,0.3608]
[1733797997149,0.05138,97253.0,97239.0,0.3608]
[1733797997345,0.3608,97257.0,97244.0,0.051384]
[1733797997552,0.3608,97257.0,97247.0,0.15218574]
[1733797997743,0.3608,97257.0,97239.0,0.3608]
[1733797997744,0.051375,97263.0,97252.0,0.3608]
[1733797998050,0.36087745,97270.0,97253.0,0.15218574]
[1733797998051,0.41224845,97270.0,97253.0,0.15218574]
[1733797998949,0.36087745,97270.0,97259.0,0.051376]
[1733797999440,0.36087745,97270.0,97253.0,0.15218574]
[1733797999441,0.36087745,97270.0,97261.0,0.3608]
[1733797999645,0.36087745,97270.0,97268.0,0.051371]
[1733798000649,7.745e-05,97270.0,97269.0,0.4155]
[1733798000855,7.745e-05,97270.0,97269.0,0.4604674]
[1733798000856,0.00407745,97270.0,97269.0,0.4604674]
[1733798001075,0.00407745,97270.0,97269.0,0.4155]
[1733798001371,0.00407745,97270.0,97269.0,1.96046629]
[1733798002167,0.00407745,97270.0,97269.0,1.9155]
[1733798002866,0.00407745,97270.0,97269.0,1.9185]
[1733798003277,0.00154226,97290.0,97271.0,0.05137]
[1733798003467,0.00154226,97290.0,97269.0,1.9185]
[1733798003468,0.00154226,97290.0,97278.0,0.051366]
[1733798004274,9.291e-05,97289.0,97278.0,0.051366]
[1733798004673,9.291e-05,97289.0,97283.0,0.051364]
[1733798005076,9.291e-05,97289.0,97287.0,0.051361]
[1733798005378,9.291e-05,97289.0,97279.0,0.15218574]
[1733798005874,9.291e-05,97289.0,97288.0,0.41216]
[1733798006871,0.00309291,97289.0,97288.0,0.41216]
[1733798007072,0.00309291,97289.0,97288.0,1.91216]
[1733798007473,9.291e-05,97289.0,97288.0,1.91216]
[1733798008274,0.00109291,97289.0,97288.0,1.91216]
[1733798008871,9.291e-05,97289.0,97288.0,1.91216]
[1733798009267,9.291e-05,97289.0,97288.0,1.5]
[1733798009471,0.41225291,97289.0,97288.0,0.01605769]
[1733798010370,0.41225291,97289.0,97272.0,1.5]
[1733798010575,9.291e-05,97289.0,97272.0,1.5]
[1733798010772,0.051362,97286.0,97272.0,1.5]
[1733798011074,0.051362,97286.0,97274.0,0.051367]
[1733798011669,0.00109291,97289.0,97279.0,0.051365]
[1733798011872,0.00109291,97289.0,97272.0,1.50052]
[1733798012078,0.00109291,97289.0,97279.0,0.15218574]
[1733798012275,0.00109291,97289.0,97284.0,0.3608]
[1733798012479,0.00109291,97289.0,97279.0,0.3608]
[1733798012480,0.051365,97280.0,97279.0,0.3608]
[1733798012673,0.3608,97287.0,97272.0,1.50052]
[1733798012982,0.051368,97273.0,97272.0,1.5]
[1733798013182,0.051368,97273.0,97272.0,1.506]
[1733798013773,0.3608,97279.0,97272.0,1.5]
[1733798014475,0.051365,97278.0,97273.0,0.01606166]
[1733798014670,0.3608,97276.0,97273.0,0.01606166]
[1733798014971,0.051365,97278.0,97273.0,0.01606166]
[1733798015368,0.36164,97286.0,97274.0,0.01606166]
[1733798015676,0.3608,97286.0,97275.0,0.06102943]
[1733798015888,0.3608,97286.0,97276.0,1.5]
[1733798016184,0.3608,97286.0,97280.0,0.051364]
[1733798016481,0.3608,97286.0,97283.0,0.051363]
[1733798016677,9.291e-05,97289.0,97287.0,0.05136]
[1733798017977,0.00509291,97289.0,97287.0,0.05136]
[1733798019574,9.291e-05,97289.0,97287.0,0.05136]
[1733798021383,9.291e-05,97289.0,97288.0,1.5]